Cogmind - Beta 15 @@@ ROGUE MODE // 2025.08.11 @ 10:17:37 Player: cingulata Result: Destroyed by S-43 Plague with Heavy Machine Gun Performance ------------- Evolutions (8) 4000 Regions Visited (23) 4600 Robots Destroyed (299) 1495 Value Destroyed (13650) 13650 Prototype IDs (28) 560 Alien Tech Used (1) 200 Bonus (7766) 7766 TOTAL SCORE: 32271 Bonus ------- High Alert Combat Kills 912 Follower Combat Kills 296 Met Imprinter 300 Met Zhirov 300 Met Warlord at Base 500 MAIN.C Attacked Warlord 500 Warlord Defense Kills 5432 Friendly Fire -474 Cogmind --------- Core Integrity 0/1450 Matter 72/300 Energy 81/100 System Corruption 8% Temperature Cool (0) Movement Core (100) Ox1 Location -2/Research Parts ------- > --- POWER (3) -------- (None) > --- PROPULSION (6) --- (None) > --- UTILITY (11) ----- (None) > --- WEAPON (3) ------- Faulty Thunder Hammer > --- INVENTORY (5) ---- Quantum Reactor Heavy Treads Improved Weapon Cycler Impact Mace Peak State ------------ > --- POWER ------------ Particle Reactor Light Particle Reactor Light Quantum Reactor > --- PROPULSION ------- Armored Medium Treads Advanced Medium Treads Armored Heavy Treads Advanced Heavy Treads > --- UTILITY ---------- Huge Storage Unit Structural Scanner Advanced Visual Processing Unit Improved Targeting Computer Advanced Target Analyzer Core Analyzer Improved Weapon Cycler Improved Power Shielding Improved Remote Force Field Improved Hacking Suite Improved Dynamic Insulation System > --- WEAPON ----------- Cooled Proton Cannon Compact HERF Cannon Enhanced Nova Cannon > --- INVENTORY -------- Reinforced Antimatter Reactor Particle Reactor Heavy Treads Centrium Wheel Centrium Wheel Improved Matter Compressor Advanced Terrain Scan Processor Improved Weapon Cycler Improved Weapon Cycler Transmission Jammer Improved Power Shielding Improved Remote Force Field Improved Remote Force Field Advanced Point Defense System Advanced Recalibrator KE Penetrator Railgun Mass Driver Enhanced Gauss Cannon Hypervelocity Gauss Cannon Linear Accelerator Enhanced Hardcell Cannon Enhanced Hardcell Cannon Impact Mace [Rating: 156] Favorites ----------- Power Heavy Ion Engine Engine Heavy Ion Engine Power Core Micro Fission Core Reactor Heavy Antimatter Reactor Propulsion Armored Wheel Treads Armored Medium Treads Leg Aluminum Leg Wheel Armored Wheel Hover Unit Cooled Antigrav System Flight Unit Q-thruster Utility Huge Storage Unit Device Structural Scanner Storage Huge Storage Unit Processor Improved Signal Interpreter Hackware Hacking Suite Protection Hardened Medium Armor Plating Weapon KE Penetrator Energy Gun Medium Laser Energy Cannon Compact HERF Cannon Ballistic Gun KE Penetrator Ballistic Cannon Improved Light Cannon Launcher Heavy Missile Launcher Special Weapon Remote Datajack Impact Weapon Impact Mace Slashing Weapon Mining Claw Special Melee Weapon Datajack Build | -11 -10 -10 -9 -9 -9 -8 -8 -7 -7 -6 -5 -5 -5 -5 -5 -4 -4 -4 -4 -4 -3 -3 -2 ------- Run | Yrd Mat Min Mat Min Exi Min Mat Fac Low Zio Pro Fac Upp Upp Zhi Pro Fac Upp Upp War Pro Res Res Slots Evolved 16 | . . . 2 . . . 2 2 . . . 4 . . . . 2 . . . . 2 2 Power 2 | . . . . . . . . . . . . 1 . . . . . . . . . . 1 Propulsion 4 | . . . 1 . . . . 1 . . . 1 . . . . . . . . . 1 . Utility 9 | . . . 1 . . . 2 1 . . . 2 . . . . 1 . . . . 1 1 Weapon 1 | . . . . . . . . . . . . . . . . . 1 . . . . . . Parts Attached 225 | 2 14 7 30 3 3 . 15 17 3 3 4 28 3 3 2 3 6 3 4 15 4 21 32 Power 22 | . 1 . 3 . . . . . . . . 5 . 1 . 2 . 1 . . 1 1 7 Engine 6 | . 1 . 3 . . . . . . . . 2 . . . . . . . . . . . Core 5 | . . . . . . . . . . . . 3 . 1 . 1 . . . . . . . Reactor 11 | . . . . . . . . . . . . . . . . 1 . 1 . . 1 1 7 Propulsion 50 | . 5 4 10 . . . 2 3 . . 2 5 . 1 . . 2 . 2 3 1 6 4 Treads 27 | . 2 2 2 . . . 1 1 . . 2 3 . 1 . . 1 . 2 3 1 4 2 Leg 1 | . 1 . . . . . . . . . . . . . . . . . . . . . . Wheel 20 | . 2 2 8 . . . 1 2 . . . 2 . . . . 1 . . . . . 2 Hover 1 | . . . . . . . . . . . . . . . . . . . . . . 1 . Flight 1 | . . . . . . . . . . . . . . . . . . . . . . 1 . Utility 88 | 1 5 1 6 2 . . 10 8 3 1 1 10 2 1 2 . 4 1 2 4 2 10 12 Device 39 | 1 1 1 1 2 . . 3 3 2 1 1 5 1 1 . . 2 . 2 1 1 6 4 Storage 6 | . 2 . 1 . . . 1 . . . . . . . 1 . . . . . . . 1 Processor 14 | . . . . . . . 3 2 . . . 1 1 . . . . 1 . . . 2 4 Hackware 4 | . . . . . . . 1 . . . . . . . . . 2 . . . . 1 . Protection 25 | . 2 . 4 . . . 2 3 1 . . 4 . . 1 . . . . 3 1 1 3 Artifact . | . . . . . . . . . . . . . . . . . . . . . . . . Weapon 65 | 1 3 2 11 1 3 . 3 6 . 2 1 8 1 . . 1 . 1 . 8 . 4 9 Energy Gun 1 | . . . . . . . . . . . . . . . . . . . . . . . 1 Energy Cannon 8 | . . . 1 . . . . . . . . 2 . . . 1 . . . . . 2 2 Ballistic Gun 14 | 1 1 1 3 1 . . . . . 1 1 2 . . . . . . . 2 . . 1 Ballistic Cannon 22 | . 2 1 3 . . . 1 3 . . . 4 . . . . . 1 . 2 . 2 3 Launcher 8 | . . . 3 . . . 1 1 . 1 . . 1 . . . . . . . . . 1 Special Weapon 4 | . . . . . 1 . . . . . . . . . . . . . . 3 . . . Impact Weapon 5 | . . . . . 1 . 1 2 . . . . . . . . . . . . . . 1 Slashing Weapon 2 | . . . 1 . . . . . . . . . . . . . . . . 1 . . . Piercing Weapon . | . . . . . . . . . . . . . . . . . . . . . . . . Special Melee Weapon 1 | . . . . . 1 . . . . . . . . . . . . . . . . . . Unidentified Prototypes 12 | . . . 3 . . . . . . . . . . . 3 . . . . 1 . 2 3 Corrupted Parts 1 | . . . . . . . . . . . . . . . . . . . . 1 . . . System Corruption 1 | . . . . . . . . . . . . . . . . . . . . 1 . . . Parts Lost 75 | . 2 . 2 . . . 1 5 . . . 8 . 4 . 3 . 4 5 4 2 7 28 Power 9 | . 1 . . . . . . . . . . 1 . 1 . . . 1 . 1 . . 4 Propulsion 21 | . 1 . . . . . . 3 . . . 3 . 2 . 1 . 1 2 . . 1 7 Utility 33 | . . . 1 . . . . 1 . . . 4 . 1 . 2 . 2 3 2 1 5 11 Weapon 12 | . . . 1 . . . 1 1 . . . . . . . . . . . 1 1 1 6 Highest Loss Streak 13 | . 1 . 2 . . . 1 3 . . . 3 . 4 . 3 . 4 3 4 1 4 13 To Critical Strikes 4 | . . . . . . . . . . . . . . . . . . . . . . . 4 Average Backups 23 | 6 17 24 24 25 24 24 24 24 23 24 25 24 23 21 24 23 24 22 18 23 21 21 21 Power 2 | 1 2 2 1 2 2 2 2 2 2 2 2 2 3 2 2 3 3 3 3 3 4 4 2 Propulsion 3 | 4 5 7 6 7 7 6 6 4 3 4 5 4 2 . . . . . . 1 5 4 1 Utility 8 | . 6 9 9 8 8 8 9 11 10 10 10 8 8 9 10 9 10 8 4 5 3 5 8 Weapon 7 | 1 3 5 6 7 7 7 6 5 8 7 7 8 9 9 10 9 9 9 9 12 7 7 8 Tool/Special . | . . . . . . . . . . . . . . . . . . . . . . . . Unused Backups 58 | 5 7 1 11 . . 3 3 5 . 1 2 1 . . . . 1 . . 8 1 2 7 Power 15 | 1 2 . 2 . . 1 . 1 . . 1 . . . . . . . . 2 1 1 3 Propulsion 11 | 2 3 1 2 . . 2 . . . . . . . . . . . . . 1 . . . Utility 18 | 1 1 . 4 . . . 2 3 . . 1 . . . . . 1 . . 2 . . 3 Weapon 13 | 1 1 . 3 . . . 1 1 . 1 . 1 . . . . . . . 2 . 1 1 Tool/Special 1 | . . . . . . . . . . . . . . . . . . . . 1 . . . Average Slot Usage (%) 96 | . 99 100 99 99 100 100 99 98 100 96 100 99 99 98 85 94 97 99 94 85 85 87 82 Engine 5 | . 14 14 11 11 11 11 9 7 7 7 7 6 . . . . . . . . . . . Core 2 | . . . . . . . . . . . . 4 11 10 11 10 10 7 1 . . . . Reactor 2 | . . . . . . . . . . . . . . . . . . 2 8 9 9 9 12 Treads 13 | . 6 15 3 11 11 11 9 13 7 7 15 11 23 28 29 23 23 23 16 15 15 20 7 Wheel 12 | . 11 12 28 22 22 22 18 15 23 23 14 16 5 . . . . 2 5 4 . . 4 Device 18 | . 9 12 8 15 10 11 10 15 21 14 23 24 22 27 22 28 28 25 30 28 23 26 18 Storage 7 | . 14 14 11 11 11 11 9 7 7 7 7 5 5 5 5 5 5 5 5 5 5 4 5 Processor 6 | . . . . . . . 15 11 7 7 7 4 5 5 5 5 5 7 10 9 5 4 16 Hackware 1 | . . . . . . . 5 6 . . . . . . . . 2 5 . . . 1 1 Protection 6 | . 4 1 13 6 11 11 4 2 8 15 7 9 11 6 8 5 5 2 . 1 10 5 2 Ballistic Gun 6 | . 21 5 3 12 11 22 4 . . 4 . 1 8 10 . 5 9 10 9 1 7 8 1 Ballistic Cannon 5 | . . 22 13 . . . 5 8 8 . 9 4 1 . . 4 1 . 3 5 5 . 5 Impact Weapon 2 | . . . . . 3 . 6 5 6 6 . 3 . . . . 3 4 1 . 2 3 . Peak Build Rating 156 | 7 10 11 24 20 23 23 34 47 49 48 51 86 86 87 90 95 110 102 109 114 122 145 156 Average Rating 60 | 6 8 10 16 19 21 20 30 38 46 46 48 68 82 83 76 89 100 99 97 99 116 125 129 On Entrance 59 | 6 7 10 10 21 19 22 21 33 44 48 47 48 86 84 74 90 90 102 96 107 104 117 140 Naked Turns 14 | . . . . . . . . . . . . . . . . . . . . . . . 14 Heaviest Build 197 | 13 93 94 105 101 104 100 115 115 127 129 116 157 136 132 127 143 140 131 160 167 180 170 197 Greatest Support 190 | 20 40 40 36 24 24 24 24 45 36 36 62 104 104 136 136 136 137 137 125 167 167 190 187 Greatest Overweight (x) 12 | . 9 9 7 4 4 4 5 4 3 3 4 4 1 . . 1 1 1 9 1 1 1 12 Average Overweight (x) 2 | . 4 7 2 3 4 4 3 3 2 3 3 3 1 . . . . . 1 . . . 2 Largest Inventory Capacity 25 | 8 25 25 25 25 25 25 25 25 25 25 25 25 25 25 25 25 25 25 25 25 25 25 25 Average Capacity 24 | 8 20 25 25 25 25 25 25 25 25 25 25 25 25 25 25 25 25 25 25 25 25 25 24 Most Carried 25 | 8 25 25 25 25 25 25 25 25 24 25 25 25 25 25 25 24 25 25 21 25 25 25 25 Average Carried 23 | 6 17 24 24 25 24 24 24 24 23 24 25 24 23 21 24 23 24 22 18 23 22 23 22 Final Capacity 25 | 8 25 25 25 25 25 25 25 25 25 25 25 25 25 25 25 25 25 25 25 25 25 25 25 Final Carried 25 | 8 25 25 25 25 25 25 25 23 23 25 25 23 25 24 24 24 25 25 21 20 22 25 25 Class Distribution -------------------- 47% | Mutant 9% | Assassin 5% | Infiltrator-Assassin 4% | Skirmisher 4% | Scavenger-Mutant 4% | Infiltrator-Skirmisher 4% | Derelict-Tank 3% | Scavenger-Gunner 3% | Commander-Mutant Dominant Class ---------------- Mutant | -10/Materials Mutant | -10/Mines Mutant | -9/Materials Mutant | -9/Mines Mutant | -9/Exiles Mutant | -8/Mines Assassin | -8/Materials Assassin | -7/Factory Assassin | -7/Lower Caves Mutant | -6/Zion Skirmisher | -5/Proximity Caves Mutant | -5/Factory Infiltrator-Skirmisher | -5/Upper Caves Skirmisher | -5/Upper Caves Mutant | -5/Zhirov Mutant | -4/Proximity Caves Infiltrator-Assassin | -4/Factory Hacker-Assassin | -4/Upper Caves Derelict-Tank | -4/Upper Caves Commander-Mutant | -4/Warlord Scavenger-Tank | -3/Proximity Caves Scavenger-Mutant | -3/Research Scavenger-Gunner | -2/Research Resources | -11 -10 -10 -9 -9 -9 -8 -8 -7 -7 -6 -5 -5 -5 -5 -5 -4 -4 -4 -4 -4 -3 -3 -2 ----------- Run | Yrd Mat Min Mat Min Exi Min Mat Fac Low Zio Pro Fac Upp Upp Zhi Pro Fac Upp Upp War Pro Res Res Matter Collected 14565 | 220 541 234 1466 139 188 121 834 899 304 227 260 1352 635 337 200 374 380 304 1119 837 228 981 2385 Remotely 5029 | . . . . . . . 185 394 25 . 227 852 542 337 . 209 124 304 987 615 228 . . Salvage Created 10666 | 101 647 46 1152 160 188 32 775 605 214 . 73 1208 56 251 . 138 353 209 696 994 117 861 1790 Parts 451 | 3 42 6 78 10 3 3 35 32 2 . 2 57 5 7 . 6 8 5 26 24 1 43 53 Haulers Intercepted 10 | . 2 . 5 . . . 2 . . . . 1 . . . . . . . . . . . Recyclers Shooed 6 | . 1 . . 2 . . 1 . . . . 2 . . . . . . . . . . . Parts Field Recycled . | . . . . . . . . . . . . . . . . . . . . . . . . Retrieved Matter . | . . . . . . . . . . . . . . . . . . . . . . . . Parts Self-Destructed 52 | . . . . . . . . . . . 5 . 7 7 . 2 . 6 25 . . . . Prevented 15 | . . . . . . . . . . . 2 . . . . 4 . 4 4 . 1 . . Kills | -11 -10 -10 -9 -9 -9 -8 -8 -7 -7 -6 -5 -5 -5 -5 -5 -4 -4 -4 -4 -4 -3 -3 -2 ------- Run | Yrd Mat Min Mat Min Exi Min Mat Fac Low Zio Pro Fac Upp Upp Zhi Pro Fac Upp Upp War Pro Res Res Combat Hostiles Destroyed 241 | . 14 5 26 4 . 1 13 18 . . 4 17 9 7 . 2 3 3 18 39 6 13 39 Melee 1 | . . . . . . . . . . . . 1 . . . . . . . . . . . Guns 48 | . 12 2 4 3 . 1 . . . . 1 1 . 3 . . 1 2 5 2 1 6 4 Cannons 95 | . 2 3 19 . . . 4 15 . . 2 12 1 . . 2 2 1 5 8 . 4 15 AOE 93 | . . . 3 1 . . 8 3 . . 1 2 8 4 . . . . 8 29 5 3 18 Classes Destroyed 27 | 2 5 1 2 1 . . 2 1 1 . 2 1 . 1 . . . . . 5 . 1 2 Worker 9 | . 1 . 1 . . 1 . 1 . . . 4 . . . . 1 . . . . . . Builder 10 | . . . . . . . 6 . . . . 1 . . . . 1 . . . . 2 . Tunneler 2 | 1 . . . 1 . . . . . . . . . . . . . . . . . . . Hauler 10 | . 2 . 5 . . . 2 . . . . 1 . . . . . . . . . . . Recycler 16 | 1 2 . 3 1 . . 2 3 . . . 2 . . . . 1 . . . . 1 . Carrier 1 | . . . . . . . . . . . . . . . . . . . . . . . 1 Mechanic 1 | . . . . . . . . . . . . 1 . . . . . . . . . . . Operator 3 | . . . 1 . . . 1 . . . . . . . . . . . . . . . 1 Drone 2 | . . . . . . . . . . . 2 . . . . . . . . . . . . Watcher 6 | . 2 . 3 . . . 1 . . . . . . . . . . . . . . . . Swarmer 69 | . 6 3 10 . . 1 4 10 . . . 4 9 4 . . . . 7 2 . 4 5 Saboteur 1 | . . . . . . . . . . . . . . . . . . . . 1 . . . Grunt 64 | . 8 . 8 3 . . 6 3 . . . . . 2 . . . 3 7 13 1 1 9 Brawler 7 | . . . . . . . . . . . . . . 1 . . . . . 5 . . 1 Duelist 6 | . . . . 1 . . . . . . 1 . . . . . . . . 3 . . 1 Protector 3 | . . . . . . . . . . . . . . . . . . . . 3 . . . Sentry 16 | . . . 8 . . . 1 1 . . . 1 . . . . 1 . 2 . . 2 . Demolisher 2 | . . . . . . . . . . . . . . . . . . . . . . . 2 Specialist 2 | . . . . . . . . . . . . . . . . . . . . 1 . 1 . Hunter 25 | . . . . . . . 2 1 . . . 6 . . . 2 . . 2 2 4 . 6 Programmer 22 | . . . . . . . . 3 . . . 6 . . . . 2 . . 3 1 4 3 Heavy 1 | . . . . . . . . . . . . . . . . . . . . . . 1 . Behemoth 3 | . . . . . . . . . . . 1 . . . . . . . . 2 . . . Striker 10 | . . . . . . . . . . . . . . . . . . . . 3 . . 7 Executioner 6 | . . . . . . . . . . . . . . . . . . . . 1 . . 5 Decomposer 3 | . . . . . . . . . 2 . . . . 1 . . . . . . . . . Packrat 2 | . . . . . . . . . 2 . . . . . . . . . . . . . . Samaritan 3 | . . . . . . . . . 2 . . . . . . . . 1 . . . . . Assembled 2 | . . 2 . . . . . . . . . . . . . . . . . . . . . Surgeon 1 | . . . . . . . . . . . . . . . . . . . . 1 . . . Savage 1 | . . . . . . . . . . . . . . . . . . . . 1 . . . Best Kill Streak 22 | 2 4 3 4 2 . 2 8 7 . . 1 4 5 4 . 2 2 2 5 22 3 5 8 Combat Bots Only 22 | . 4 3 3 2 . 1 4 6 . . 1 4 5 4 . 2 2 2 5 22 3 4 8 Max Kills in Single Turn 5 | 1 2 1 2 1 . 1 3 3 1 . 1 2 3 2 . 1 1 1 2 5 2 2 3 Gunslinging . | . . . . . . . . . . . . . . . . . . . . . . . . Exploded 5 | . . . 1 1 . . 2 2 . . 1 1 3 2 . . . . 2 5 2 2 3 Melee 1 | . . . . . . . . . . . . 1 . . . . . . . . . . . Uniques/NPCs Destroyed . | . . . . . . . . . . . . . . . . . . . . . . . . Combat | -11 -10 -10 -9 -9 -9 -8 -8 -7 -7 -6 -5 -5 -5 -5 -5 -4 -4 -4 -4 -4 -3 -3 -2 -------- Run | Yrd Mat Min Mat Min Exi Min Mat Fac Low Zio Pro Fac Upp Upp Zhi Pro Fac Upp Upp War Pro Res Res Hostile Shots Fired 1759 | . 63 10 109 12 . 7 74 169 . . 22 215 14 61 . 83 39 38 130 117 48 120 428 Missed 530 | . 11 . 26 3 . 1 22 64 . . 8 52 6 20 . 36 23 8 46 32 23 31 118 Intercepted 8 | . . . . . . . . . . . . . . . . . . . . . . . 8 Hits 1229 | . 52 10 83 9 . 6 52 105 . . 14 163 8 41 . 47 16 30 84 85 25 89 310 Melee 22 | . . . . . . . . . . . . . . 8 . . . . . 9 . . 5 Projectile 1207 | . 52 10 83 9 . 6 52 105 . . 14 163 8 33 . 47 16 30 84 76 25 89 305 AOE 5 | . . . . . . . . . . . . . . . . . . . . . . . 5 Critical Strikes 59 | . 2 . . . . 1 . 1 . . 2 9 . 2 . 1 1 3 3 8 1 7 18 Actively Blocked 5 | . 1 . . . . . . . . . . . . . . . 1 1 . . . 1 1 Part Disruptions 1 | . . . . . . . . . . . . . . . . . . . . . . 1 . Actively Blocked 1 | . . . . . . . . . . . . . . . . . . . . . . 1 . Damage Taken 21040 | . 552 88 905 105 . 46 826 1538 . . 216 2691 159 745 . 557 256 593 1112 1641 450 2188 6372 Core 2840 | . 90 16 86 12 . . 110 251 . . 55 255 . 42 . 29 30 53 122 37 11 188 1453 Absorbed by Shields 3244 | . . . . . . . . 125 . . 20 96 14 216 . 87 73 . 421 257 64 538 1333 Reduced by Siege Mode 137 | . . . . . . . . . . . . . . . . . . . . 59 . 78 . Redirected to Shielding 707 | . 35 5 122 . . . . . . . . . . . . 54 39 73 . 9 4 154 212 Ignored by Resistances 757 | . . . . . . . 43 27 . . . 533 . . . 6 . . 148 . . . . Regen/Repaired (Parts) 1397 | . 62 . 128 . . . . 301 . 77 . . . . . . . . . 414 . . 415 Core Remaining (%) 74 | 100 . 57 . . . 75 80 . . . 56 . . . . 67 . . . . 78 85 . Volleys Fired 646 | 5 67 11 88 16 5 4 40 45 . . 12 64 8 17 . 14 12 12 38 39 13 45 91 Largest 3 | 2 2 2 2 2 1 2 2 2 . . 2 2 1 2 . 2 3 3 3 3 3 3 3 Hottest 181 | 100 70 66 66 46 5 46 66 80 . . 80 102 51 78 . 162 117 113 162 113 117 181 178 Shots Fired 1259 | 10 134 22 168 26 5 8 64 81 1 . 22 111 9 36 . 28 31 40 84 74 24 95 186 Gun 465 | 10 130 4 21 20 . 8 6 . . . 6 10 1 32 . 11 24 28 40 22 11 57 24 Cannon 665 | . 4 18 143 . . . 42 79 1 . 14 95 1 . . 17 7 12 37 16 5 33 141 Launcher 117 | . . . 4 6 . . 16 2 . . 2 6 7 4 . . . . 7 31 6 5 21 Special 12 | . . . . . 5 . . . . . . . . . . . . . . 5 2 . . Kinetic 1037 | . 111 22 164 20 . 8 48 79 1 . 20 95 2 32 . 20 31 40 71 38 16 76 143 Thermal 41 | 10 23 . . . . . . . . . . . . . . . . . . . . . 8 Explosive 105 | . . . 4 6 . . 3 . . . 2 2 7 4 . . . . 7 36 8 5 21 Electromagnetic 71 | . . . . . . . 13 2 . . . 14 . . . 8 . . 6 . . 14 14 Robot Hit Streak 24 | 6 10 8 17 20 2 3 9 7 . . 10 7 8 24 . 4 7 12 10 12 13 12 15 Robot Miss Streak 6 | 1 6 2 3 2 1 1 3 4 . . 2 3 1 2 . 4 4 2 2 4 3 4 5 Penetration Max 1 | . . . . . . . . . . . 1 1 . . . . . . 1 1 . 1 1 Secondary Targets 5 | . . . . 1 . 1 . . . . 1 . . 2 . . . . . . . . . Max Gunslinging Chain 1 | . . . . 1 . 1 . . . . 1 . . 1 . . . . . . . . . Shots Hit Robots 768 | 8 79 7 97 16 33 5 33 44 6 . 14 71 3 28 . 10 22 29 56 29 8 68 102 Core Hits 540 | 3 30 5 47 9 2 2 25 24 1 . 7 33 12 16 . 5 5 9 40 132 19 32 82 Critical Kills 27 | . . . . . . . . . . . . 14 1 . . 2 2 . 1 1 . 2 4 Critical Parts Destroyed 41 | . . . . . . . 1 . 1 . . 25 . 1 . 2 3 1 1 1 1 . 4 Critical Strikes 86 | . 2 1 1 . . . 1 1 1 . 2 40 1 1 . 4 5 1 2 2 1 3 17 Burn 2 | . 2 . . . . . . . . . . . . . . . . . . . . . . Meltdown 1 | . . . . . . . . . . . . . . . . . . . . . . . 1 Destroy 63 | . . . . . . . . . . . . 36 1 1 . 4 5 . 2 2 1 3 8 Blast 12 | . . 1 1 . . . . 1 . . 2 . . . . . . . . . . . 7 Corrupt 2 | . . . . . . . . . . . . 1 . . . . . . . . . . 1 Smash 6 | . . . . . . . 1 . 1 . . 3 . . . . . 1 . . . . . Melee Attacks 235 | . . . 43 3 32 1 22 34 6 . . 34 . . . . 17 1 . . . 39 3 Impact 163 | . . . . . 6 1 22 34 6 . . 34 . . . . 17 1 . . . 39 3 Slashing 47 | . . . 43 3 1 . . . . . . . . . . . . . . . . . . Piercing . | . . . . . . . . . . . . . . . . . . . . . . . . Sneak Attacks 35 | . . . . 3 4 . 6 1 6 . . 8 . . . . 3 1 . . . 3 . Combat Hostiles 1 | . . . . . . . . . . . . 1 . . . . . . . . . . . Follow-up Attacks . | . . . . . . . . . . . . . . . . . . . . . . . . Damage Inflicted 38114 | 102 1033 144 2071 676 442 69 1889 1594 578 . 503 2745 630 942 . 213 857 826 2676 8532 1406 2629 7557 Guns 6588 | 102 971 38 268 153 . 69 43 . . . 135 311 . 618 . 95 406 470 803 388 95 1079 544 Cannons 10824 | . 57 106 1673 . . . 517 1209 . . 270 1096 19 . . 118 105 274 688 353 42 828 3469 Explosions 16970 | . . . 130 377 . . 897 320 . . 98 310 611 324 . . . . 1185 7584 1214 431 3489 Melee 3401 | . . . . 146 442 . 432 65 578 . . 996 . . . . 346 82 . . . 262 52 Ramming 69 | . 5 . . . . . . . . . . 32 . . . . . . . . . 29 3 Kinetic 16062 | . 854 144 1941 153 . 69 560 1209 . . 405 1294 19 618 . 142 511 744 1381 741 137 1672 3468 Thermal 945 | 102 174 . . . . . 149 169 . . . 90 . . . . . . . . . . 261 Explosive 15807 | . . . 130 377 . . 149 107 . . 98 108 611 324 . . . . 1185 7584 1214 431 3489 Electromagnetic 1568 | . . . . . . . 599 44 . . . 225 . . . 71 . . 110 . . 235 284 Impact 3211 | . . . . . 398 . 432 65 578 . . 996 . . . . 346 82 . . . 262 52 Slashing 452 | . . . . 146 44 . . . . . . . . . . . . . . 207 55 . . Piercing . | . . . . . . . . . . . . . . . . . . . . . . . . Highest Corruption 21 | . . . . . . . 1 3 3 . . 5 5 11 11 11 3 3 3 8 8 21 8 Average Corruption 6 | . . . . . . . 1 2 2 . . 2 5 10 11 11 2 3 3 4 8 14 7 Corruption Purged 3 | . . . . . . . . . 3 . . . . . . . . . . . . . . Corruption Blocked . | . . . . . . . . . . . . . . . . . . . . . . . . Effects 269 | . . . . . . . 12 14 7 . . 5 20 16 12 42 5 20 15 4 21 50 26 Message Errors 60 | . . . . . . . 3 4 3 . . . 5 1 2 13 1 6 4 1 5 7 5 Matter Fused 62 | . . . . . . . 3 4 2 . . 1 4 4 6 7 1 5 4 1 5 12 3 Heat Flow Errors 23 | . . . . . . . 1 . . . . . 2 2 1 4 1 1 . . 4 5 2 Energy Discharges 39 | . . . . . . . 2 1 . . . 1 3 1 . 8 1 4 2 1 . 11 4 Parts Rejected 4 | . . . . . . . . . . . . 1 . . . . . . . . . . 3 Parts Fused 4 | . . . . . . . . . . . . . . . 2 . . . 1 . . 1 . Data Loss (minor) 25 | . . . . . . . . 5 1 . . . 2 2 1 1 . . 2 1 3 5 2 Data Loss (major) 17 | . . . . . . . 1 . . . . 2 3 2 . 4 . . . . 2 2 1 Misfires 19 | . . . . . . . 1 . 1 . . . 1 3 . 4 1 4 . . 1 2 1 Alerts 4 | . . . . . . . . . . . . . . . . 1 . . 1 . 1 1 . Weapon Failures 12 | . . . . . . . 1 . . . . . . 1 . . . . 1 . . 4 5 Overload Shots . | . . . . . . . . . . . . . . . . . . . . . . . . Overflow Damage 2758 | . . . 28 20 261 . 288 83 442 . . 753 6 1 . . 273 82 121 119 14 155 112 Projectiles 168 | . . . 18 . . . 40 15 . . . . . . . . 2 . . 1 5 . 87 Explosions 539 | . . . 10 14 . . . 28 . . . 158 6 1 . . . . 121 118 9 51 23 Melee 2051 | . . . . 6 261 . 248 40 442 . . 595 . . . . 271 82 . . . 104 2 Knockbacks 99 | . 3 . 15 . 2 . 11 8 . . 1 15 . . . 1 1 6 3 2 . 5 26 Impact 10 | . 1 . . . 2 . 2 . . . . 2 . . . . 1 . . . . 2 . Kinetic 88 | . 1 . 15 . . . 9 8 . . 1 13 . . . 1 . 6 3 2 . 3 26 Secondary 1 | . 1 . . . . . . . . . . . . . . . . . . . . . . Self-Inflicted Damage 980 | . . . . . . . 257 248 . . . 244 52 . . . . . 55 . . 37 87 Shots 24 | . . . . . . . 9 3 . . . 6 2 . . . . . 2 . . 1 1 Rammed 9 | . 1 . . . . . . . . . . 4 . . . . . . . . . 2 2 Targets Rammed 9 | . 1 . . . . . . . . . . 4 . . . . . . . . . 2 2 Kicked . | . . . . . . . . . . . . . . . . . . . . . . . . Crushed . | . . . . . . . . . . . . . . . . . . . . . . . . Highest Temperature 554 | 195 111 12 84 3 . . 193 63 4 . 309 384 239 253 172 231 59 222 54 346 190 177 554 Average Temperature 93 | 95 26 5 18 3 . . 45 17 3 . 83 131 92 81 102 87 40 61 12 69 48 68 173 Received Heat Transfer 2476 | . 237 9 225 57 . . 135 74 . . 350 189 . 209 . . . 108 207 480 . 140 56 Effects 19 | . . . . . . . . . . . . 6 . . . . . . . . . . 13 Shutdowns 5 | . . . . . . . . . . . . . . . . . . . . . . . 5 Energy Bleed 4 | . . . . . . . . . . . . 2 . . . . . . . . . . 2 Interference 3 | . . . . . . . . . . . . 2 . . . . . . . . . . 1 Matter Decay 2 | . . . . . . . . . . . . 1 . . . . . . . . . . 1 Short Circuit 1 | . . . . . . . . . . . . 1 . . . . . . . . . . . Damage (minor) 2 | . . . . . . . . . . . . . . . . . . . . . . . 2 Damage (core) 2 | . . . . . . . . . . . . . . . . . . . . . . . 2 Siege Activations 7 | . . . . . . . . . . . . . . . . . . . . 1 . 6 . Total Turns 90 | . . . . . . . . . . . . . . . . . . . . 27 . 63 . Longest Duration 27 | . . . . . . . . . . . . . . . . . . . . 27 . 22 . Martial Activations . | . . . . . . . . . . . . . . . . . . . . . . . . Shielding Activations . | . . . . . . . . . . . . . . . . . . . . . . . . Robots Disrupted . | . . . . . . . . . . . . . . . . . . . . . . . . Combat Hostiles . | . . . . . . . . . . . . . . . . . . . . . . . . Robots Corrupted 16 | . . . . . 2 . 5 . 2 . . 3 . . . . 2 . . . . 1 1 Combat Hostiles 5 | . . . . . 2 . 1 . . . . 1 . . . . . . . . . . 1 Parts Fried 38 | . . . . . 2 . 12 1 3 . . 8 . . . 1 5 1 . . . 2 3 Impact Corruptions 56 | . . . . . 4 . 11 1 13 . . 10 . . . . 8 4 . . . 4 1 Robots Melted 1 | . . . . . . . . . . . . . . . . . . . . . . . 1 Combat Hostiles 1 | . . . . . . . . . . . . . . . . . . . . . . . 1 Parts Melted 8 | . 1 . . . . . . . . . . . . . . . . . . 1 . . 6 Heat Transferred 1547 | 296 666 . . . . . 200 150 . . . 50 . . . . . . . . . . 185 Parts Sabotaged . | . . . . . . . . . . . . . . . . . . . . . . . . Parts Stolen . | . . . . . . . . . . . . . . . . . . . . . . . . Parts Stripped . | . . . . . . . . . . . . . . . . . . . . . . . . Power Chain Reactions 4 | . . . . . . . 3 1 . . . . . . . . . . . . . . . Alert | -11 -10 -10 -9 -9 -9 -8 -8 -7 -7 -6 -5 -5 -5 -5 -5 -4 -4 -4 -4 -4 -3 -3 -2 ------- Run | Yrd Mat Min Mat Min Exi Min Mat Fac Low Zio Pro Fac Upp Upp Zhi Pro Fac Upp Upp War Pro Res Res Maximum Alert Level 3 | . . . 2 . . . 1 1 . . . 2 . . . . . . . . . . 3 Low Security (%) 76 | 100 100 100 73 100 . 100 78 86 . . . . . . . . 100 . . . . 100 56 Level 1 16 | . . . 18 . . . 21 13 . . . 78 . . . . . . . . . . 6 Level 2 5 | . . . 7 . . . . . . . . 21 . . . . . . . . . . 19 Level 3 1 | . . . . . . . . . . . . . . . . . . . . . . . 18 Level 4 . | . . . . . . . . . . . . . . . . . . . . . . . . Level 5 . | . . . . . . . . . . . . . . . . . . . . . . . . High Security . | . . . . . . . . . . . . . . . . . . . . . . . . Max Security . | . . . . . . . . . . . . . . . . . . . . . . . . Peak Influence 1010 | 10 139 67 444 178 . 58 269 396 . . . 545 . . . . 64 . . . . 197 1010 Initial 300 | . . 52 23 165 . . . 9 . . . 300 . . . . . . . . . . 102 Average 123 | 2 38 6 138 101 . 4 83 110 . . . 325 . . . . 10 . . . . 40 306 Influence Increases 8581 | 10 423 95 937 173 15 86 643 814 . . 128 1196 200 160 . 50 185 70 390 849 130 547 1480 Destroy 0b10 Robot/C 4860 | . 280 80 520 80 . 60 280 360 . . 80 340 180 140 . 40 60 60 360 760 120 260 800 Destroy 0b10 Robot/NC 330 | 10 35 . 65 10 15 5 65 20 . . 10 45 . . . . 15 . . 15 . 15 5 Destroy Leader 872 | . 68 10 156 20 . 10 76 90 . . 20 82 20 20 . 10 20 10 30 . 10 70 150 Allied During Kill 49 | . . 5 . . . 10 2 . . . 18 . . . . . . . . 14 . . . Successful Hack 299 | . 23 . 47 . . . 11 62 . . . 76 . . . . 26 . . . . 54 . Disable Machine 375 | . . . 30 30 . . 45 75 . . . 120 . . . . 30 . . . . . 45 Destroy Structure 1031 | . 2 . 74 33 . 1 74 102 . . . 158 . . . . 34 . . . . 148 405 Advance Influence 300 | . . . . . . . . . . . . 300 . . . . . . . . . . . Partial Spotted 15 | . . . 15 . . . . . . . . . . . . . . . . . . . . Lose Combat Pursuer 450 | . 15 . 30 . . . 90 105 . . . 75 . . . . . . . 60 . . 75 Influence Decreases 7615 | 10 288 169 572 599 15 86 622 549 286 . 128 654 635 261 6 50 183 72 310 253 806 364 697 Entered New Map 1567 | . . 83 38 261 . . . 12 106 . . . 201 21 6 . . 2 . 80 676 . 81 Time Decay 4970 | 10 268 86 514 338 15 66 370 347 180 . 68 574 434 200 . 40 183 40 280 87 120 334 416 Lost Part 560 | . 20 . 20 . . . 10 40 . . . 80 . 40 . 10 . 30 30 40 10 30 200 Lost Ally 151 | . . . . . . 20 25 . . . 60 . . . . . . . . 46 . . . Purge Threat 367 | . . . . . . . 217 150 . . . . . . . . . . . . . . . Squads Dispatched 30 | . 5 . 2 . . . 3 5 . . . 5 . . . . 2 . . . . 8 . Investigation 7 | . 4 . . . . . 2 1 . . . . . . . . . . . . . . . Extermination 11 | . . . . . . . . 3 . . . 3 . . . . 2 . . . . 3 . Reinforcement 9 | . 1 . 2 . . . 1 1 . . . 2 . . . . . . . . . 2 . Assault . | . . . . . . . . . . . . . . . . . . . . . . . . Garrison 3 | . . . . . . . . . . . . . . . . . . . . . . 3 . Intercept . | . . . . . . . . . . . . . . . . . . . . . . . . Searches Triggered . | . . . . . . . . . . . . . . . . . . . . . . . . Construction Impeded . | . . . . . . . . . . . . . . . . . . . . . . . . Haulers Reinforced . | . . . . . . . . . . . . . . . . . . . . . . . . Active Scanning Responses . | . . . . . . . . . . . . . . . . . . . . . . . . Cargo Convoy Interrupts 1 | . . . . . . . . . . . . 1 . . . . . . . . . . . Stealth | -11 -10 -10 -9 -9 -9 -8 -8 -7 -7 -6 -5 -5 -5 -5 -5 -4 -4 -4 -4 -4 -3 -3 -2 --------- Run | Yrd Mat Min Mat Min Exi Min Mat Fac Low Zio Pro Fac Upp Upp Zhi Pro Fac Upp Upp War Pro Res Res Distress Signals 20 | . 2 1 . . . . 3 1 . . . 1 . . . . . . . . . . 12 Communications Jammed 10 | . . . . . . . . . . . 1 1 . . . . 8 . . . . . . Distress Signals 9 | . . . . . . . . . . . . 1 . . . . 8 . . . . . . Times Spotted 381 | . 19 6 38 4 . 3 22 25 . . 7 23 7 7 . 2 6 3 17 90 6 19 77 Peak Tracking Total 14 | . 5 3 4 2 . 3 5 7 . . 3 5 3 4 . 2 4 2 7 14 3 8 10 Tactical Retreats 19 | . 1 . 2 . . . 3 3 . . . 5 . . . . . . . 2 . . 3 Traps | -11 -10 -10 -9 -9 -9 -8 -8 -7 -7 -6 -5 -5 -5 -5 -5 -4 -4 -4 -4 -4 -3 -3 -2 ------- Run | Yrd Mat Min Mat Min Exi Min Mat Fac Low Zio Pro Fac Upp Upp Zhi Pro Fac Upp Upp War Pro Res Res Traps Triggered 3 | . 2 . . . . . 1 . . . . . . . . . . . . . . . . Indirectly 1 | . . . . . . . 1 . . . . . . . . . . . . . . . . Trap Hack Attempts . | . . . . . . . . . . . . . . . . . . . . . . . . Triggered . | . . . . . . . . . . . . . . . . . . . . . . . . Disarmed . | . . . . . . . . . . . . . . . . . . . . . . . . Reprogrammed . | . . . . . . . . . . . . . . . . . . . . . . . . Reused . | . . . . . . . . . . . . . . . . . . . . . . . . Traps Extracted . | . . . . . . . . . . . . . . . . . . . . . . . . Installed . | . . . . . . . . . . . . . . . . . . . . . . . . Triggered . | . . . . . . . . . . . . . . . . . . . . . . . . Machines | -11 -10 -10 -9 -9 -9 -8 -8 -7 -7 -6 -5 -5 -5 -5 -5 -4 -4 -4 -4 -4 -3 -3 -2 ---------- Run | Yrd Mat Min Mat Min Exi Min Mat Fac Low Zio Pro Fac Upp Upp Zhi Pro Fac Upp Upp War Pro Res Res Machines Disabled 26 | . . . 2 2 . . 3 5 . . . 8 . . . . 2 . 1 . . . 3 Max in Single Turn 5 | . . . 1 1 . . 1 2 . . . 5 . . . . 1 . 1 . . . 1 Garrison Access 3 | . . . . . . . 1 1 . . . 1 . . . . . . . . . . . Machines Repaired . | . . . . . . . . . . . . . . . . . . . . . . . . Machines Dismantled . | . . . . . . . . . . . . . . . . . . . . . . . . Machines Sabotaged . | . . . . . . . . . . . . . . . . . . . . . . . . Overloaded Fab Kills . | . . . . . . . . . . . . . . . . . . . . . . . . Hacking | -11 -10 -10 -9 -9 -9 -8 -8 -7 -7 -6 -5 -5 -5 -5 -5 -4 -4 -4 -4 -4 -3 -3 -2 --------- Run | Yrd Mat Min Mat Min Exi Min Mat Fac Low Zio Pro Fac Upp Upp Zhi Pro Fac Upp Upp War Pro Res Res Machines Accessed 83 | . 9 . 12 . 3 . 8 13 . . . 10 3 . 9 1 3 . . 3 . 8 1 Terminals 38 | . 7 . 8 . . . 5 7 . . . 4 . . . 1 2 . . . . 4 . Fabricators 4 | . . . . . . . . 2 . . . . . . . . . . . . . 2 . Repair Stations 6 | . 1 . 1 . . . . 2 . . . 2 . . . . . . . . . . . Recycling Units 5 | . 1 . 2 . . . 1 . . . . . . . . . 1 . . . . . . Scanalyzers 6 | . . . 1 . . . 1 1 . . . 2 . . . . . . . . . 1 . Garrison Access 6 | . . . . . . . 1 1 . . . 2 . . . . . . . . . 1 1 Total Hacks 242 | . 24 . 38 . 14 . 26 33 . . . 20 7 . 48 1 10 . . 7 . 12 2 Successful 175 | . 13 . 28 . 14 . 14 19 . . . 11 7 . 48 1 9 . . 7 . 4 . Failed 66 | . 10 . 10 . . . 12 14 . . . 9 . . . . 1 . . . . 8 2 Catastrophic 11 | . 1 . . . . . 2 1 . . . 3 . . . . . . . . . 4 . Database Lockouts 1 | . 1 . . . . . . . . . . . . . . . . . . . . . . Manual 71 | . 10 . 15 . . . 15 8 . 4 . 4 . . . . 5 . . 1 . 9 . Terminals 98 | . 17 . 21 . . . 19 17 . . . 8 . . . 1 8 . . . . 7 . Fabricators 7 | . . . . . . . . 4 . . . . . . . . . . . . . 3 . Repair Stations 23 | . 5 . 7 . . . . 7 . . . 4 . . . . . . . . . . . Recycling Units 9 | . 2 . 3 . . . 2 . . . . . . . . . 2 . . . . . . Scanalyzers 17 | . . . 7 . . . 2 3 . . . 4 . . . . . . . . . 1 . Garrison Access 12 | . . . . . . . 3 2 . . . 4 . . . . . . . . . 1 2 Terminal Hacks 112 | . 5 . 10 . 14 . 7 4 . . . 3 7 . 48 1 6 . . 7 . . . Record 69 | . . . 1 . 14 . . . . . . 3 5 . 36 1 2 . . 7 . . . Part Schematic 5 | . . . 1 . . . . . . . . . . . 4 . . . . . . . . Robot Analysis 7 | . 1 . 1 . . . 1 . . . . . . . 4 . . . . . . . . Prototype ID Bank 7 | . . . 1 . . . 1 . . . . . . . 4 . 1 . . . . . . Open Door 2 | . . . . . . . . . . . . . 2 . . . . . . . . . . Branch Access Points 3 | . 1 . . . . . 1 . . . . . . . . . 1 . . . . . . Terminal Index 1 | . . . 1 . . . . . . . . . . . . . . . . . . . . Unreport Threat 3 | . . . . . . . 2 1 . . . . . . . . . . . . . . . Locate Traps 7 | . 1 . 3 . . . 1 2 . . . . . . . . . . . . . . . Recall Investigation 1 | . 1 . . . . . . . . . . . . . . . . . . . . . . Recall Extermination 1 | . . . . . . . . . . . . . . . . . 1 . . . . . . Hauler Manifests 1 | . . . . . . . 1 . . . . . . . . . . . . . . . . Zone Layout 5 | . 1 . 2 . . . . 1 . . . . . . . . 1 . . . . . . Fabricator Hacks 4 | . . . . . . . . 3 . . . . . . . . . . . . . 1 . Network Status 2 | . . . . . . . . 1 . . . . . . . . . . . . . 1 . Load Schematic 1 | . . . . . . . . 1 . . . . . . . . . . . . . . . Build 1 | . . . . . . . . 1 . . . . . . . . . . . . . . . Repair Station Hacks 18 | . 4 . 6 . . . . 6 . . . 2 . . . . . . . . . . . Scan Component 10 | . 2 . 3 . . . . 3 . . . 2 . . . . . . . . . . . Repair 8 | . 2 . 3 . . . . 3 . . . . . . . . . . . . . . . Recycling Unit Hacks 8 | . 2 . 2 . . . 2 . . . . . . . . . 2 . . . . . . Process 3 | . 1 . . . . . 1 . . . . . . . . . 1 . . . . . . Retrieve Matter 3 | . 1 . . . . . 1 . . . . . . . . . 1 . . . . . . Retrieve Components 2 | . . . 2 . . . . . . . . . . . . . . . . . . . . Scanalyzer 13 | . . . 7 . . . 2 1 . . . 3 . . . . . . . . . . . Insert Component 8 | . . . 4 . . . 1 1 . . . 2 . . . . . . . . . . . Analyze 5 | . . . 3 . . . 1 . . . . 1 . . . . . . . . . . . Garrison Access Hacks 3 | . . . . . . . 1 1 . . . 1 . . . . . . . . . . . Seal Access 3 | . . . . . . . 1 1 . . . 1 . . . . . . . . . . . Unauthorized Hacks 17 | . 2 . 3 . . . 2 4 . . . 2 . . . . 1 . . . . 3 . Terminals 16 | . 2 . 3 . . . 2 4 . . . 2 . . . . 1 . . . . 2 . Track 2 | . . . . . . . . 1 . . . 1 . . . . . . . . . . . Botnet 13 | . 2 . 2 . . . 2 3 . . . 1 . . . . 1 . . . . 2 . Operators 1 | . . . 1 . . . . . . . . . . . . . . . . . . . . Fabricators 1 | . . . . . . . . . . . . . . . . . . . . . . 1 . Haulers 1 | . . . . . . . . . . . . . . . . . . . . . . 1 . Repair Stations . | . . . . . . . . . . . . . . . . . . . . . . . . Recycling Units . | . . . . . . . . . . . . . . . . . . . . . . . . Scanalyzers . | . . . . . . . . . . . . . . . . . . . . . . . . Garrison Access . | . . . . . . . . . . . . . . . . . . . . . . . . Data Cores Recovered . | . . . . . . . . . . . . . . . . . . . . . . . . Used . | . . . . . . . . . . . . . . . . . . . . . . . . Hacking Detections 59 | . 8 . 11 . . . 7 13 . . . 9 . . . . 2 . . . . 8 1 Full Trace Events 3 | . 1 . . . . . 1 1 . . . . . . . . . . . . . . . Feedback Events . | . . . . . . . . . . . . . . . . . . . . . . . . Feedback Blocked . | . . . . . . . . . . . . . . . . . . . . . . . . Robot Schematics Acquired . | . . . . . . . . . . . . . . . . . . . . . . . . Robots Built . | . . . . . . . . . . . . . . . . . . . . . . . . Authchips . | . . . . . . . . . . . . . . . . . . . . . . . . Time . | . . . . . . . . . . . . . . . . . . . . . . . . Total Robot Build Rating . | . . . . . . . . . . . . . . . . . . . . . . . . Part Schematics Acquired 10 | . . . 4 . . . 1 . . . . 1 . . 4 . . . . . . . . Parts Built 2 | . . . . . . . . 2 . . . . . . . . . . . . . . . Authchips . | . . . . . . . . . . . . . . . . . . . . . . . . Time 62 | . . . . . . . . 62 . . . . . . . . . . . . . . . Total Part Build Rating 4 | . . . . . . . . 4 . . . . . . . . . . . . . . . Parts Repaired 8 | . 2 . 3 . . . . 3 . . . . . . . . . . . . . . . Time 256 | . 52 . 90 . . . . 114 . . . . . . . . . . . . . . . Parts Recycled . | . . . . . . . . . . . . . . . . . . . . . . . . Recycled Matter 258 | . 198 . . . . . 32 . . . . . . . . . 28 . . . . . . Retrieved Matter 283 | . 223 . . . . . 32 . . . . . . . . . 28 . . . . . . Retrieved Components 14 | . . . 14 . . . . . . . . . . . . . . . . . . . . Parts Scanalyzed 7 | . . . 3 . . . 1 1 . . . 2 . . . . . . . . . . . Part Schematics Acquired 5 | . . . 3 . . . 1 . . . . 1 . . . . . . . . . . . Parts Damaged 1 | . . . . . . . . . . . . 1 . . . . . . . . . . . Bothacking | -11 -10 -10 -9 -9 -9 -8 -8 -7 -7 -6 -5 -5 -5 -5 -5 -4 -4 -4 -4 -4 -3 -3 -2 ------------ Run | Yrd Mat Min Mat Min Exi Min Mat Fac Low Zio Pro Fac Upp Upp Zhi Pro Fac Upp Upp War Pro Res Res Used RIF Installer . | . . . . . . . . . . . . . . . . . . . . . . . . Robots Hacked . | . . . . . . . . . . . . . . . . . . . . . . . . Non-combat . | . . . . . . . . . . . . . . . . . . . . . . . . Combat . | . . . . . . . . . . . . . . . . . . . . . . . . Robot Hacks Applied . | . . . . . . . . . . . . . . . . . . . . . . . . Relay Couplers Released . | . . . . . . . . . . . . . . . . . . . . . . . . Fabnet Peak Effective % . | . . . . . . . . . . . . . . . . . . . . . . . . Robots Rewired 8 | . . . . . 3 . . . . . . . . . . . . . . 5 . . . Allies Hacked . | . . . . . . . . . . . . . . . . . . . . . . . . Hacks Repelled . | . . . . . . . . . . . . . . . . . . . . . . . . Allies | -11 -10 -10 -9 -9 -9 -8 -8 -7 -7 -6 -5 -5 -5 -5 -5 -4 -4 -4 -4 -4 -3 -3 -2 -------- Run | Yrd Mat Min Mat Min Exi Min Mat Fac Low Zio Pro Fac Upp Upp Zhi Pro Fac Upp Upp War Pro Res Res Total Allies 13 | . . 2 . . 3 . . . . 3 . . . . . . . . . 5 . . . Largest Group 5 | . . 2 . . 3 3 2 . . 3 3 . . . . . . . . 5 . . . Highest-Rated Group 250 | . . 45 . . 37 37 29 . . 78 78 . . . . . . . . 250 . . . Highest-Rated Ally 56 | . . 31 . . 21 21 21 . . 39 39 . . . . . . . . 56 . . . Total Orders 1 | . . . . . . . . . . . . . . . . . . . . 1 . . . FOLLOW 1 | . . . . . . . . . . . . . . . . . . . . 1 . . . Ally Attacks 95 | . . 8 . . . 6 11 . . . 38 . . . . . . . . 32 . . . Total Damage 1979 | . . 123 . . . 66 259 . . . 650 . . . . . . . . 881 . . . Kills 11 | . . 2 . . . 2 2 . . . 2 . . . . . . . . 3 . . . Allies Corrupted . | . . . . . . . . . . . . . . . . . . . . . . . . Allies Melted 3 | . . . . . . . . . . . . . . . . . . . . 2 . . 1 Intel | -11 -10 -10 -9 -9 -9 -8 -8 -7 -7 -6 -5 -5 -5 -5 -5 -4 -4 -4 -4 -4 -3 -3 -2 ------- Run | Yrd Mat Min Mat Min Exi Min Mat Fac Low Zio Pro Fac Upp Upp Zhi Pro Fac Upp Upp War Pro Res Res Active Infowar (turns) 20701 | 24 995 798 2001 777 1020 769 1681 1943 430 568 630 1720 1064 432 441 1040 834 912 599 . . 858 1165 Optics 961 | . . . . . . . . . . . . . . . . . . . . . . . 961 Sensors 9565 | . . . . . . . 1324 734 428 . 556 1512 1064 432 441 1040 801 912 321 . . . . Terrain 3363 | . . . . 308 . . 123 1016 430 568 628 290 . . . . . . . . . . . Structural 8517 | . . . . 38 . . 518 1292 . . . 1685 1027 392 178 70 743 912 460 . . 577 625 Seismic 7176 | 24 995 796 2001 777 1020 769 34 746 . . . . . . . . . . . . . . 14 Machine Analysis 1479 | . . . . . . . 1296 . . . . . . . . . . . . . . 183 . Jamming 6518 | . . . . . . . . . . 4 600 1157 1064 . 3 1040 834 912 507 . . 308 89 ECM 2 | . . 2 . . . . . . . . . . . . . . . . . . . . . Robot Analysis Total 7 | . 1 . 1 . . . 1 . . . . . . . 4 . . . . . . . . Derelict Logs Recovered 10 | . . 1 . 2 . . . . 2 1 1 . 1 1 . . . 1 . . . . . Drone Launches . | . . . . . . . . . . . . . . . . . . . . . . . . Drone Recoveries . | . . . . . . . . . . . . . . . . . . . . . . . . Exploration | -11 -10 -10 -9 -9 -9 -8 -8 -7 -7 -6 -5 -5 -5 -5 -5 -4 -4 -4 -4 -4 -3 -3 -2 ------------- Run | Yrd Mat Min Mat Min Exi Min Mat Fac Low Zio Pro Fac Upp Upp Zhi Pro Fac Upp Upp War Pro Res Res Turns Passed 26717 | 47 1553 877 2612 777 1026 769 1681 2145 570 1202 685 1743 1064 459 441 1108 834 912 1156 1859 535 1292 1370 Spaces Moved 12583 | 23 753 254 1268 466 633 476 843 900 343 815 383 845 406 225 262 440 354 419 404 656 260 541 614 Core 52 | . . . . . . . . . . . . . . . . . . . . . . . 52 Treads 4378 | . 19 52 21 . . . 7 3 . . 17 28 406 225 262 440 354 419 397 656 260 541 271 Legs 119 | 23 96 . . . . . . . . . . . . . . . . . . . . . . Wheels 8034 | . 638 202 1247 466 633 476 836 897 343 815 366 817 . . . . . . 7 . . . 291 Hover . | . . . . . . . . . . . . . . . . . . . . . . . . Flight . | . . . . . . . . . . . . . . . . . . . . . . . . Fastest Speed 50 | 120 95 215 120 135 150 150 135 120 120 135 135 135 247 161 161 161 164 164 242 163 158 155 50 Average Speed 167 | 120 156 261 134 147 150 150 150 146 121 135 153 143 247 161 161 237 197 194 243 243 185 159 167 Slowest Speed 640 | 120 480 480 480 150 150 150 560 320 135 135 241 410 247 161 161 245 245 242 270 247 243 243 640 Overloaded Moves . | . . . . . . . . . . . . . . . . . . . . . . . . Propulsion Burnouts . | . . . . . . . . . . . . . . . . . . . . . . . . Robots Hopped . | . . . . . . . . . . . . . . . . . . . . . . . . Potential Cave-ins 4 | . . . . . . . . . . . . . . . . . . . . . . 4 . Cave-ins Triggered 1 | . . . . . . . . . . . . . . . . . . . . . . 1 . Exploration Rate (%) 54 | 2 96 45 90 97 92 99 60 20 49 85 56 17 62 40 62 54 12 48 56 76 43 17 28 Regions Visited 23 Branch Regions 15 Pre-discovered Areas 12 | . . 2 . . 1 . . . . 4 . . . 1 3 . . . . 1 . . . Known Exits Taken 12 | . 1 . . . . . 1 1 . . . 1 1 1 1 1 1 1 . . 1 1 . Unknown Exits Taken 11 | 1 . 1 1 1 1 1 . . 1 1 1 . . . . . . . 1 1 . . . Scrap Searched 17 | . . 1 . 1 . 3 . . 1 4 . . 2 1 . 1 . . 1 . 2 . . Spaces Dug 141 | . . . 22 . . 1 13 29 . . . 24 . . . . 13 . . . . 33 6 Terrain Destroyed 1170 | . . . 79 52 . 1 77 113 . . 25 87 68 40 . 3 19 16 88 161 56 100 185 Melee 133 | . . . 21 . . 1 13 29 . . . 24 . . . . 13 . . . . 30 2 Projectile 126 | . . . 9 . . . . 13 . . 3 . . 5 . 3 6 16 14 3 9 13 32 AOE 911 | . . . 49 52 . . 64 71 . . 22 63 68 35 . . . . 74 158 47 57 151 Terrain Rammed . | . . . . . . . . . . . . . . . . . . . . . . . . Walls Destroyed . | . . . . . . . . . . . . . . . . . . . . . . . . Machines Disabled . | . . . . . . . . . . . . . . . . . . . . . . . . Actions | -11 -10 -10 -9 -9 -9 -8 -8 -7 -7 -6 -5 -5 -5 -5 -5 -4 -4 -4 -4 -4 -3 -3 -2 --------- Run | Yrd Mat Min Mat Min Exi Min Mat Fac Low Zio Pro Fac Upp Upp Zhi Pro Fac Upp Upp War Pro Res Res Total 16619 | 31 991 444 1924 519 683 525 1155 1569 481 917 450 1191 455 284 282 476 428 486 502 857 292 834 843 Wait 2120 | . 114 150 393 24 . 28 169 480 123 87 34 129 23 28 . 5 18 47 26 71 . 131 40 Move 12560 | 22 752 253 1267 465 632 475 842 899 342 814 382 844 405 224 261 439 353 418 403 655 259 540 614 Hop . | . . . . . . . . . . . . . . . . . . . . . . . . Pick Up 245 | 2 27 6 30 . 2 7 17 25 1 5 2 30 3 1 5 3 6 . 6 20 5 20 22 Fast Attach 44 | 1 . . 7 1 . . . . . . . 2 . . 5 . 1 . 2 4 2 11 8 Attach 103 | . 4 . 5 . . . 5 9 1 2 . 14 2 4 1 2 2 4 6 9 4 6 23 Detach 18 | . 1 . 1 . . . . . . 2 . . 2 2 1 . . . 3 5 1 . . Swap 418 | 1 16 15 52 9 10 3 43 59 7 4 18 48 11 8 2 12 16 4 16 10 5 21 28 Drop 197 | . 9 9 38 1 2 7 17 18 1 3 2 22 1 . 7 1 3 . 2 20 3 19 12 Fire 646 | 5 67 11 88 16 5 4 40 45 . . 12 64 8 17 . 14 12 12 38 39 13 45 91 Melee 235 | . . . 43 3 32 1 22 34 6 . . 34 . . . . 17 1 . . . 39 3 Ram 2 | . . . . . . . . . . . . . . . . . . . . . . . 2 Kick . | . . . . . . . . . . . . . . . . . . . . . . . . Crush 7 | . 1 . . . . . . . . . . 4 . . . . . . . . . 2 . Escape Stasis . | . . . . . . . . . . . . . . . . . . . . . . . . Rewire 24 | . . . . . . . . . . . . . . . . . . . . 24 . . . Trap . | . . . . . . . . . . . . . . . . . . . . . . . . Miscellaneous . | . . . . . . . . . . . . . . . . . . . . . . . . Route ------- -11/Scrapyard -10/Materials (discovered 6 exits: *Mat x3 / *Min x2 / [*Sub]) -10/Mines -9/Materials (discovered 3 exits: *Mat x2 / [*Min]) -9/Mines (discovered 3 exits: *Mat x2 / *Exi) -9/Exiles -8/Mines (discovered 2 exits: *Mat x2) -8/Materials -7/Factory -7/Lower Caves -6/Zion (discovered 2 exits: [*Dee] / [*Pro]) -5/Proximity Caves -5/Factory (discovered 2 exits: *Fac / *Upp) -5/Upper Caves -5/Upper Caves -5/Zhirov -4/Proximity Caves -4/Factory (discovered 4 exits: *Res x2 / *Upp x2) -4/Upper Caves -4/Upper Caves (discovered 2 exits: *Res / *War) -4/Warlord -3/Proximity Caves -3/Research -2/Research History --------- Turn | Location | Event 17 | -11/Scrapyard | Discovered new exit (range 3) 48 | -11/Scrapyard | Entered Materials 49 | -10/Materials | Met a group of wandering Federalists 226 | -10/Materials | Discovered new exit (range 7) 314 | -10/Materials | Build established: Mutant 467 | -10/Materials | Discovered new exit (range 3) 598 | -10/Materials | Discovered new exit (range 7) 808 | -10/Materials | Discovered new exit (range 10) 918 | -10/Materials | Central database locked down 1068 | -10/Materials | Discovered new exit (range 10) 1123 | -10/Materials | Identified exit to Mines 1270 | -10/Materials | Discovered new exit (range 4) 1519 | -10/Materials | Repaired Propulsion Shielding 1546 | -10/Materials | Repaired Lgt. Treads 1601 | -10/Materials | Entered Mines 1602 | -10/Mines | Assembled infested the area 1602 | -10/Mines | Learned location of Storage (-7) 1636 | -10/Mines | Met a Derelict bent on vengeance 2010 | -10/Mines | Found a damaged Exp. Sensor Array with a note attached 2113 | -10/Mines | Joined a pair of Derelicts in attacking an 0b10 outpost 2420 | -10/Mines | Discovered new exit (range 9) 2478 | -10/Mines | Entered Materials 2478 | -9/Materials | Evolved 2 slots: Propulsion x1, Utility x1 3333 | -9/Materials | Discovered new exit (range 10) 3509 | -9/Materials | Discovered new exit (range 16) 3824 | -9/Materials | Repaired Mni. Grenade Launcher 3857 | -9/Materials | Repaired Imp. Light Cannon 3884 | -9/Materials | Repaired Propulsion Shielding 4869 | -9/Materials | Discovered new exit (range 12) 5090 | -9/Materials | Entered Mines 5176 | -9/Mines | Deemed a non-threat by the Exiles lab entrance 5177 | -9/Mines | Discovered new exit (range 5) 5216 | -9/Mines | Discovered new exit (range 15) 5561 | -9/Mines | Discovered new exit (range 5) 5746 | -9/Mines | Learned Materials security intel 5867 | -9/Mines | Entered Exiles 5867 | -9/Exiles | Found Exiles lab destroyed 6812 | -9/Exiles | Learned location of Zion (-6) 6874 | -9/Exiles | Discovered new exit (range 14) 6893 | -9/Exiles | Entered Mines 6893 | -8/Mines | Accompanied by 3 allies 7380 | -8/Mines | Discovered new exit (range 5) 7522 | -8/Mines | Discovered new exit (range 16) 7662 | -8/Mines | Entered Materials 7662 | -8/Materials | Accompanied by 2 allies 7662 | -8/Materials | Evolved 2 slots: Utility x2 8054 | -8/Materials | Build established: Assassin 9065 | -8/Materials | Discovered new exit (range 16) 9112 | -8/Materials | Identified exit to Factory 9343 | -8/Materials | Entered Factory 9343 | -7/Factory | Evolved 2 slots: Propulsion x1, Utility x1 9769 | -7/Factory | Repaired Reactive Plating 10120 | -7/Factory | Repaired Arm. Treads 10159 | -7/Factory | Repaired Adv. Treads 10800 | -7/Factory | Fabricated Arm. Wheel? 11133 | -7/Factory | Build established: Mutant 11223 | -7/Factory | Lost 3 parts (1n1u1w) 11446 | -7/Factory | Discovered new exit (range 13) 11463 | -7/Factory | Identified exit to Lower Caves 11488 | -7/Factory | Entered Lower Caves 11546 | -7/Lower Caves | Learned Factory stockpile data 11849 | -7/Lower Caves | Build established: Assassin 11931 | -7/Lower Caves | Encountered a Warlord checkpoint 11942 | -7/Lower Caves | Learned Factory trap positions 11951 | -7/Lower Caves | A Derelict revealed a hidden shortcut to a safe place 12058 | -7/Lower Caves | Entered Zion 12132 | -6/Zion | Discovered new exit (range 16) 12212 | -6/Zion | Build established: Mutant 12337 | -6/Zion | Learned Factory trap positions 12346 | -6/Zion | Acquired unknown access codes intercepted by a Zionite 12429 | -6/Zion | Learned location of Armory (-3) 12438 | -6/Zion | Learned location of Quarantine (-3) 12470 | -6/Zion | Gained Derelict followers 12760 | -6/Zion | Met Imprinter 12878 | -6/Zion | Discovered new exit (range 14) 12899 | -6/Zion | Opened final containment barrier to the Deep Caves 12922 | -6/Zion | Saw the warning signs outside the Deep Caves entrance 13260 | -6/Zion | Entered Proximity Caves 13260 | -5/Proximity Caves | Accompanied by 3 allies 13289 | -5/Proximity Caves | Spotted B-75 Beast 13335 | -5/Proximity Caves | Destroyed B-75 Beast 13343 | -5/Proximity Caves | Lost 3 allies 13366 | -5/Proximity Caves | Spotter reported a threat 13460 | -5/Proximity Caves | Spotter reported a threat 13463 | -5/Proximity Caves | Learned Factory security intel 13674 | -5/Proximity Caves | Build established: Skirmisher 13726 | -5/Proximity Caves | Discovered new exit (range 14) 13945 | -5/Proximity Caves | Entered Factory 13945 | -5/Factory | Evolved 4 slots: Power x1, Propulsion x1, Utility x2 13946 | -5/Factory | Loaded intel: 122 trap records 14541 | -5/Factory | Build established: Infiltrator-Mutant 15011 | -5/Factory | Build established: Mutant 15381 | -5/Factory | Discovered new exit (range 10) 15392 | -5/Factory | Identified exit to Factory 15488 | -5/Factory | Cargo convoy interrupted 15555 | -5/Factory | Build established: Infiltrator-Assassin 15568 | -5/Factory | Discovered new exit (range 15) 15624 | -5/Factory | Lost 3 parts (2n1u) 15679 | -5/Factory | Identified exit to Upper Caves 15688 | -5/Factory | Entered Upper Caves 15884 | -5/Upper Caves | Entered an active Warlord outpost 15925 | -5/Upper Caves | Learned 8 Factory zone layouts 15925 | -5/Upper Caves | Learned Armory trap positions 15925 | -5/Upper Caves | Learned Extension garrison access intel 16252 | -5/Upper Caves | Build established: Infiltrator-Skirmisher 16642 | -5/Upper Caves | Discovered new exit (range 9) 16705 | -5/Upper Caves | Learned 4 Factory zone layouts 16726 | -5/Upper Caves | Identified exit to Upper Caves 16752 | -5/Upper Caves | Entered another Upper Caves area 16773 | -5/Upper Caves | System corruption reached 10% 16805 | -5/Upper Caves | Lost 4 parts (1p2n1u) 17096 | -5/Upper Caves | Build established: Skirmisher 17189 | -5/Upper Caves | Discovered new exit (range 14) 17208 | -5/Upper Caves | Identified exit to Zhirov 17211 | -5/Upper Caves | Entered Zhirov 17211 | -5/Zhirov | Discovered new exit (range 4) 17240 | -5/Zhirov | Met Zhirov 17273 | -5/Zhirov | Learned location of Testing (-2) 17273 | -5/Zhirov | Learned location of Command (-1) 17308 | -5/Zhirov | Zhirov requested help retrieving the SGEMP Prototype 17415 | -5/Zhirov | Found Alien Artifact 17416 | -5/Zhirov | Identified Integrated Dissipator 17416 | -5/Zhirov | Installed Integrated Dissipator, increased core heat dissipation (+20) 17528 | -5/Zhirov | Build established: Mutant 17651 | -5/Zhirov | Identified exit to Proximity Caves 17652 | -5/Zhirov | Entered Proximity Caves 17791 | -4/Proximity Caves | Lost 3 parts (1n2u) 18721 | -4/Proximity Caves | Discovered exit to Factory (range 16) 18760 | -4/Proximity Caves | Entered Factory 18760 | -4/Factory | Evolved 2 slots: Utility x1, Weapon x1 18761 | -4/Factory | Identified exit to Research 18762 | -4/Factory | Loaded intel: 117 trap records 19280 | -4/Factory | Discovered exit to Research (range 7) 19344 | -4/Factory | Identified exit to Upper Caves 19581 | -4/Factory | Spotted B-86 Titan 19594 | -4/Factory | Entered Upper Caves 19720 | -4/Upper Caves | Build established: Hacker-Assassin 19795 | -4/Upper Caves | Encountered a Warlord checkpoint 19807 | -4/Upper Caves | Learned Research trap positions 20135 | -4/Upper Caves | Lost 4 parts (1p1n2u) 20201 | -4/Upper Caves | Discovered new exit (range 8) 20218 | -4/Upper Caves | Identified exit to Upper Caves 20423 | -4/Upper Caves | Build established: Infiltrator-Assassin 20506 | -4/Upper Caves | Entered another Upper Caves area 20591 | -4/Upper Caves | Discovered exit to Research (range 9) 20648 | -4/Upper Caves | Spotted B-86 Titan 20822 | -4/Upper Caves | Attracted the attention of an 0b10 outpost 21194 | -4/Upper Caves | Lost 3 parts (1n2u) 21420 | -4/Upper Caves | Build established: Derelict-Tank 21484 | -4/Upper Caves | Attracted the attention of an 0b10 checkpoint 21648 | -4/Upper Caves | Discovered new exit (range 5) 21662 | -4/Upper Caves | Entered Warlord 21744 | -4/Warlord | System corruption cleaned by Quarantine Array 21909 | -4/Warlord | Learned 4 Research zone layouts 21909 | -4/Warlord | Learned 4 Quarantine zone layouts 21911 | -4/Warlord | Learned Research terminal intel 21911 | -4/Warlord | Learned Research fabricator intel 21911 | -4/Warlord | Learned Research repair station intel 21911 | -4/Warlord | Learned Research recycling unit intel 21969 | -4/Warlord | Build established: Derelict-Mutant 22356 | -4/Warlord | Found Prototype Special Weapon 22359 | -4/Warlord | Found Prototype Special Weapon 22363 | -4/Warlord | Found Prototype Special Weapon 22429 | -4/Warlord | Build established: Commander-Mutant 22782 | -4/Warlord | Met Warlord 22807 | -4/Warlord | Warlord's base attacked by MAIN.C 22944 | -4/Warlord | Spotted B-90 Cyclops 22987 | -4/Warlord | Lost 5 allies 23031 | -4/Warlord | Lost 3 allies 23058 | -4/Warlord | Identified RU-N14's Throwing Claymores v3 (x3) 23142 | -4/Warlord | Spotted B-86 Titan 23157 | -4/Warlord | Warlord forces counterattacked 23191 | -4/Warlord | Spotted B-90 Cyclops 23200 | -4/Warlord | Spotted Striker 23241 | -4/Warlord | Spotted Striker 23260 | -4/Warlord | Destroyed Striker 23278 | -4/Warlord | Spotted Striker 23322 | -4/Warlord | Spotted Striker 23327 | -4/Warlord | Spotted Executioner 23330 | -4/Warlord | Destroyed Executioner 23337 | -4/Warlord | Destroyed Striker 23394 | -4/Warlord | Destroyed 22 combat bots 23399 | -4/Warlord | Lost 32 allies 23407 | -4/Warlord | Spotted B-86 Titan 23407 | -4/Warlord | Spotted Striker 23407 | -4/Warlord | Spotted B-90 Cyclops 23417 | -4/Warlord | Destroyed B-86 Titan 23426 | -4/Warlord | Destroyed B-90 Cyclops 23432 | -4/Warlord | Destroyed Striker 23457 | -4/Warlord | Lost 4 parts (1p2u1w) 23459 | -4/Warlord | Destroyed 14 combat bots 23482 | -4/Warlord | Warlord base infiltrated, sounded retreat 23484 | -4/Warlord | Discovered new exit (range 15) 23521 | -4/Warlord | Entered Proximity Caves 23541 | -3/Proximity Caves | Found DCF Scrap (14 items) 23639 | -3/Proximity Caves | Ambushed by research squad 23697 | -3/Proximity Caves | Build established: Scavenger-Tank 24035 | -3/Proximity Caves | Discovered exit to Research (range 14) 24056 | -3/Proximity Caves | Entered Research 24056 | -3/Research | Evolved 2 slots: Propulsion x1, Utility x1 24057 | -3/Research | Identified exit to Research 24058 | -3/Research | Loaded intel: 89 trap records 24059 | -3/Research | Loaded intel: 24 terminal locations 24060 | -3/Research | Loaded intel: 4 fabricator locations 24061 | -3/Research | Loaded intel: 4 repair station locations 24062 | -3/Research | Loaded intel: 5 recycling unit locations 24097 | -3/Research | Build established: Scavenger-Mutant 24240 | -3/Research | Crushed by falling debris 24240 | -3/Research | System corruption reached 10% 24271 | -3/Research | Lost 4 parts (4u) 24434 | -3/Research | Garrison activated, responded to threat 24489 | -3/Research | Spotted B-86 Titan 25348 | -3/Research | Entered another Research area 25348 | -2/Research | Warlord forces began assault on 0b10 25348 | -2/Research | Evolved 2 slots: Power x1, Utility x1 25458 | -2/Research | Research machine network offline 25598 | -2/Research | Spotted Executioner 25600 | -2/Research | Spotted Striker 25718 | -2/Research | Borebot progress halted 25755 | -2/Research | Borebot progress halted 25790 | -2/Research | Spotted Striker 25791 | -2/Research | Spotted Striker 25853 | -2/Research | Lost 4 allies 25929 | -2/Research | Lost 13 parts (2p4n5u2w) 25983 | -2/Research | Borebot progress halted 25987 | -2/Research | Lost 3 allies 26005 | -2/Research | Spotted Striker 26012 | -2/Research | Spotted Striker 26023 | -2/Research | Destroyed Striker 26025 | -2/Research | Destroyed Striker 26040 | -2/Research | Spotted Striker 26057 | -2/Research | Destroyed Striker 26063 | -2/Research | Spotted Executioner 26081 | -2/Research | Lost 4 allies 26090 | -2/Research | Destroyed Executioner 26115 | -2/Research | Spotted Striker 26132 | -2/Research | Destroyed Striker 26325 | -2/Research | Build established: Scavenger-Gunner 26422 | -2/Research | Spotted Executioner 26422 | -2/Research | Spotted Executioner 26427 | -2/Research | Destroyed Executioner 26434 | -2/Research | Destroyed Executioner 26455 | -2/Research | Destroyed 7 combat bots 26469 | -2/Research | Spotted Striker 26478 | -2/Research | Destroyed Striker 26512 | -2/Research | Spotted Striker 26518 | -2/Research | Lost 9 allies 26523 | -2/Research | Destroyed 8 combat bots 26527 | -2/Research | Spotted Striker 26538 | -2/Research | Destroyed Striker 26544 | -2/Research | Destroyed Striker 26546 | -2/Research | Core integrity fell below 50% 26566 | -2/Research | Lost 3 allies 26609 | -2/Research | Lost 4 parts (3u1w) 26641 | -2/Research | Spotted Executioner 26641 | -2/Research | Spotted Executioner 26678 | -2/Research | Destroyed Executioner 26684 | -2/Research | Destroyed Executioner 26687 | -2/Research | Released all parts (15) 26704 | -2/Research | Spotted Striker 26706 | -2/Research | Core integrity fell below 20% 26709 | -2/Research | Lost 9 parts (2p2n2u3w) 26718 | -2/Research | Destroyed by S-43 Plague with Heavy Machine Gun Last Messages --------------- 26687_ Released Linear Accelerator. 26688_ Slug penetrates Wall. 26701_ Acquired Seismic Detector. 26703_ 6PXXGRJDQBWA5NJ|4Z2GW/DMV#E9ICJBPPB 26704_ Repair Station disabled. 26704_ Backup Power III tumbles out of repair station. 26704_ Backup Plating III tumbles out of repair station. 26704_ Backup Power III tumbles out of repair station. 26709_ Penetrated by Slug. 26713_ Acquired Prototype Impact Weapon. 26713_ Identified Thunder Hammer. 26713_ Faulty integration triggers energy drain (-19). 26715_ Seismic Detector destroyed. 26717_ Slammed into S-43 Plague. [Achievement: 20k Club] [Achievement: 30k Club] Map ----- +----------------------------------------------------+ | ?????????????????????????????????????????????????? | | ?????????????????????????????????????????????????? | | ?????????????????????????????????????????????????? | | ?????????????????????????????????????????????????? | | ?????????????????????????????????????????????????? | | ?????????????????????????????????????????????????? | | ?????????????????????????????????????????????????? | | ??????????????????????????? ???????????????????? | | ??????????????????????????/ ???????????????????? | | ??????????????????????????# #??????????????????? | | ??????????????????????????# #??????????????????? | | ??????????????????????????# #??????????????????? | | ??????????????????????????# #??????????????????? | | ??????????????????????????# #??????????????????? | | ??????????????????????????# T??????????????????? | | ??????????????????????????# ??????????????????? | | ???????????????????????" #??????????????????? | | ###???????????????????????# #??????????????????? | | ##???????????????????????# #??######+#????????? | | ####???????????########### #?/ #????????? | | ####???????????# # #? #????????? | | " ##???????????# # # #????????? | | % ##???????????# [! # # #????????? | | " ##???????????# [! ssK / #????????? | | ####???????????# ss# # #????????? | | ####???????????# s@# # #????????? | | ###?????????????# # #? #????????? | | ###?????????????# # ###########????????? | | ##??????????????########### + *#?????????? | | ##???????????????# ?# # #?????????? | | #???????##??????? ?# # * """ #?????????? | | ##??????# #??????? """ # # ! "R" #?????????? | | ########"#???????# """ # * " #?????????? | | !#????????# "S + % #?????????? | | ##???????# """ # #?????????? | | ""##???????# "" # ! #?????????? | | """##???????# ?# ! #?????????? | | """##???????# ?# ####?????????? | | % ######???########## #??????? | | " #?????##?# ##" # #??????? | | " #?????# ## ## # """"" #??????? | | %""""""" ""#######"#"""## # ""T"" ????????? | | ############ [%##" # ??????????? | | ####??###### %%##" # ?????????? | | ???????????# """"""%%%#"" # ????????? | | ???????????# """""""%![* ############???????? | | ???????????# """""""]!!#""+##??????????????????? | | ???????????# [%]=#] ??????????????????? | | ???????????# *!!!] ???????????????? | | ???????????# """"" "!=[* """"" ""?????????????? | +----------------------------------------------------+ Best States ------------- Heat Dissipation 69 Coolant Potential 100 Energy Generation 63 Energy Capacity 670 Matter Stores 465 Matter Capacity 600 Sight Range 20 Robot Scan Range 15 Terrain Scan Range 16 Terrain Scan Density 210 Jamming Range 14 EM Shielding 3 Armor Coverage 1200 Resistance: KI 30 Resistance: EX 50 Resistance: EM 15 Core Shielding 30 Power Shielding 66 Propulsion Shielding 90 Utility Shielding 33 Weapon Shielding 90 Point Defense Rating 240 Weapon Cycling 30 Phase Shifting 5 Evasion (%) 55 Targeting Accuracy 6 Target Analysis 12 Core Analysis 6 Armor Integrity Analysis 30 Recoil Reduction 12 Matter Filtering 30 Kinecelleration 30 Offensive Hacking 14 Defensive Hacking 14 Item Schematics ----------------- Hcp. Storage Unit | -9/Materials | Hacked Arm. Wheel | -9/Materials | Scanalyzed Hvy. Assault Rifle | -9/Materials | Scanalyzed Hrd. Light Armor Plating | -9/Materials | Scanalyzed Arm. Treads | -8/Materials | Scanalyzed Enh. Gauss Cannon | -5/Factory | Scanalyzed Assault Drone Bay | -5/Zhirov | Free Exp. Heat Sink | -5/Zhirov | Free Exp. Optical Array | -5/Zhirov | Free Imp. Arc Thrower | -5/Zhirov | Free Robot Schematics ------------------ None Fabricated ------------ Arm. Wheel | x2 | -7/Factory Repaired ---------- Propulsion Shielding | 54% | -10/Materials Lgt. Treads | 72% | -10/Materials Mni. Grenade Launcher | 38% | -9/Materials Imp. Light Cannon | 55% | -9/Materials Propulsion Shielding | 26% | -9/Materials Reactive Plating | 53% | -7/Factory Arm. Treads | 55% | -7/Factory Adv. Treads | 51% | -7/Factory Alien Tech Used ----------------- Integrated Dissipator Achievements -------------- 20k Club 30k Club Can't Touch This Charge!!! I Spy Killing Spree Knowing Is Half The Battle Leap Before You Look No Explosion For You Oh No You Don't! Preemptive Strike Quick And Dirty Rockin' Loadout Tank The Science Guy Challenges ------------ None Game ------ Seed OpticalOmegaMaul Manual? 0 Play Time 06:36:03 Cumulative 78.6 hours Start 2025.08.03 @ 11:54:37 End 2025.08.11 @ 10:17:37 Sessions 13 Manual Loads 0 Difficulty Rogue Special Mode None Game No. 53 Rogue 52 Adventurer 0 Explorer 1 Win Type - Total 2 Types 2/0/0/0/0/0/0/0/0/0 Lore% 46 Gallery% 37 Achievement% 37 Wizard Run 0 Options --------- Layout 2 ASCII 0 Keyboard 0 Movement Numpad Keybinds 0 Fullscreen 1 Font 32/SmallcapsGlow Map View 50x44 Zoom Use 0% Tactical HUD 1 Map Filters NONE Filters NONE Steam 1 RUN: 60fcf53c-a794-436e-ad9a-0f729f05e9db